Cogmind - Beta 17 @@@ ROGUE MODE // 2026.07.14 @ 14:16:51 // Winter2019/RPGLIKE Player: Gallgagger Result: Self-destructed Performance ------------- Evolutions (1) 500 Regions Visited (6) 1200 Robots Destroyed (3) 15 Value Destroyed (30) 30 Prototype IDs (0) 0 Alien Tech Used (0) 0 Bonus (500) 500 TOTAL SCORE: 2245 Bonus ------- Pacifist 200 Aligned with FarCom 300 Cogmind --------- Core Integrity 312/850 Matter 121/300 Energy 99/100 System Corruption 3% Temperature Cool (3) Movement Flying (29) Location -8/Mines Parts ------- > --- POWER (1) -------- (None) > --- PROPULSION (3) --- Surge Thruster Surge Thruster Surge Thruster > --- UTILITY (1) ------ (None) > --- WEAPON (1) ------- Assault Rifle > --- INVENTORY (2) ---- Surge Thruster Peak State ------------ > --- POWER ------------ (None) > --- PROPULSION ------- Surge Thruster Surge Thruster Surge Thruster > --- UTILITY ---------- (None) > --- WEAPON ----------- Assault Rifle > --- INVENTORY -------- (None) [Rating: 10] Favorites ----------- Power None Propulsion Surge Thruster Flight Unit Surge Thruster Utility None Weapon Assault Rifle Ballistic Gun Assault Rifle Build | -11 -10 -10 -9 -9 -9 -8 ------- Run | Yrd Mat Min Mat Min Exi Min Slots Evolved 2 | . . . 2 . . . Power . | . . . . . . . Propulsion 2 | . . . 2 . . . Utility . | . . . . . . . Weapon . | . . . . . . . Parts Attached 7 | 1 . . 6 . . . Power . | . . . . . . . Engine . | . . . . . . . Core . | . . . . . . . Reactor . | . . . . . . . Propulsion 6 | . . . 6 . . . Treads . | . . . . . . . Leg . | . . . . . . . Wheel . | . . . . . . . Hover . | . . . . . . . Flight 6 | . . . 6 . . . Utility . | . . . . . . . Device . | . . . . . . . Storage . | . . . . . . . Processor . | . . . . . . . Hackware . | . . . . . . . Protection . | . . . . . . . Artifact . | . . . . . . . Weapon 1 | 1 . . . . . . Energy Gun . | . . . . . . . Energy Cannon . | . . . . . . . Ballistic Gun 1 | 1 . . . . . . Ballistic Cannon . | . . . . . . . Launcher . | . . . . . . . Special Weapon . | . . . . . . . Impact Weapon . | . . . . . . . Slashing Weapon . | . . . . . . . Piercing Weapon . | . . . . . . . Special Melee Weapon . | . . . . . . . Unidentified Prototypes . | . . . . . . . Parts Lost . | . . . . . . . Power . | . . . . . . . Propulsion . | . . . . . . . Utility . | . . . . . . . Weapon . | . . . . . . . Highest Loss Streak . | . . . . . . . To Critical Strikes . | . . . . . . . Average Backups . | . . . . 1 1 1 Power . | . . . . . . . Propulsion . | . . . . 1 1 1 Utility . | . . . . . . . Weapon . | . . . . . . . Tool/Special . | . . . . . . . Unused Backups 1 | . . . . . . 1 Power . | . . . . . . . Propulsion 1 | . . . . . . 1 Utility . | . . . . . . . Weapon . | . . . . . . . Tool/Special . | . . . . . . . Average Slot Usage (%) 49 | . 25 25 52 66 66 66 Flight 29 | . . . 32 50 50 50 Ballistic Gun 19 | . 25 25 19 16 16 16 Peak Build Rating 10 | 1 1 1 10 10 10 10 Average Rating 5 | . 1 1 4 10 10 10 On Entrance 4 | . 1 1 1 10 10 10 Avg Prop Armor Cover (%) . | . . . . . . . Naked Turns . | . . . . . . . Heaviest Build 2 | 2 2 2 2 2 2 2 Greatest Support 12 | 3 3 3 12 9 9 9 Greatest Overweight (x) . | . . . . . . . Average Overweight (x) . | . . . . . . . Largest Inventory Capacity 2 | . . . 1 2 2 2 Average Capacity . | . . . . 1 2 2 Most Carried 2 | . . . 1 2 1 1 Average Carried . | . . . . 1 1 1 Final Capacity 2 | . . . 1 2 2 2 Final Carried 2 | . . . 1 2 1 1 Class Distribution -------------------- 54% | Mutant 45% | Sprinter Dominant Class ---------------- Mutant | -10/Materials Mutant | -10/Mines Mutant | -9/Materials Sprinter | -9/Mines Sprinter | -9/Exiles Sprinter | -8/Mines Resources | -11 -10 -10 -9 -9 -9 -8 ----------- Run | Yrd Mat Min Mat Min Exi Min Matter Collected 116 | . . . 116 . . . Remotely . | . . . . . . . Salvage Created 58 | . . . 58 . . . Parts 7 | . . . 7 . . . Haulers Intercepted . | . . . . . . . Recyclers Shooed . | . . . . . . . Parts Field Recycled . | . . . . . . . Retrieved Matter . | . . . . . . . Parts Self-Destructed . | . . . . . . . Prevented . | . . . . . . . Parts Restored . | . . . . . . . Kills | -11 -10 -10 -9 -9 -9 -8 ------- Run | Yrd Mat Min Mat Min Exi Min Combat Hostiles Destroyed 3 | . . . 3 . . . Guns 3 | . . . 3 . . . Classes Destroyed 1 | . . . 1 . . . Swarmer 3 | . . . 3 . . . Best Kill Streak 3 | . . . 3 . . . Combat Bots Only 3 | . . . 3 . . . Max Kills in Single Turn 1 | . . . 1 . . . Gunslinging . | . . . . . . . Exploded . | . . . . . . . Melee . | . . . . . . . Uniques/NPCs Destroyed . | . . . . . . . Combat | -11 -10 -10 -9 -9 -9 -8 -------- Run | Yrd Mat Min Mat Min Exi Min Hostile Shots Fired 164 | . . 14 117 33 . . Missed 87 | . . 8 57 22 . . Hits 77 | . . 6 60 11 . . Projectile 77 | . . 6 60 11 . . Damage Taken 783 | . . 80 579 94 30 . Core 682 | . . 80 492 80 30 . Absorbed by Shields . | . . . . . . . Redirected to Core 329 | . . . 281 48 . . Core Remaining (%) 93 | 100 . 86 . . . . Volleys Fired 10 | . . . 10 . . . Largest 1 | . . . 1 . . . Hottest 20 | . . . 20 . . . Shots Fired 10 | . . . 10 . . . Gun 10 | . . . 10 . . . Cannon . | . . . . . . . Launcher . | . . . . . . . Special . | . . . . . . . Kinetic 10 | . . . 10 . . . Thermal . | . . . . . . . Explosive . | . . . . . . . Electromagnetic . | . . . . . . . Robot Hit Streak 2 | . . . 2 . . . Robot Miss Streak 1 | . . . 1 . . . Penetration Max . | . . . . . . . Secondary Targets . | . . . . . . . Shots Hit Robots 4 | . . . 4 . . . Core Hits 3 | . . . 3 . . . Critical Kills . | . . . . . . . Critical Parts Destroyed . | . . . . . . . Critical Strikes . | . . . . . . . Melee Attacks . | . . . . . . . Impact . | . . . . . . . Slashing . | . . . . . . . Piercing . | . . . . . . . Sneak Attacks . | . . . . . . . Combat Hostiles . | . . . . . . . Follow-up Attacks . | . . . . . . . Damage Inflicted 81 | . 1 . 50 . 30 . Guns 50 | . . . 50 . . . Cannons . | . . . . . . . Explosions . | . . . . . . . Melee . | . . . . . . . Ramming 31 | . 1 . . . 30 . Kinetic 50 | . . . 50 . . . Thermal . | . . . . . . . Explosive . | . . . . . . . Electromagnetic . | . . . . . . . Impact . | . . . . . . . Slashing . | . . . . . . . Piercing . | . . . . . . . Highest Corruption 3 | . . . . . 3 3 Average Corruption 3 | . . . . . 3 3 Corruption Purged . | . . . . . . . Corruption Blocked . | . . . . . . . Overload Shots . | . . . . . . . Overflow Damage . | . . . . . . . Projectiles . | . . . . . . . Explosions . | . . . . . . . Melee . | . . . . . . . Knockbacks . | . . . . . . . Impact . | . . . . . . . Kinetic . | . . . . . . . Secondary . | . . . . . . . Self-Inflicted Damage 30 | . . . . . 30 . Shots . | . . . . . . . Rammed 1 | . 1 . . . . . Targets Rammed 1 | . 1 . . . . . Kicked . | . . . . . . . Crushed . | . . . . . . . Highest Temperature 220 | . . . 220 . . . Average Temperature 118 | . . . 118 . . . Received Heat Transfer 192 | . . 39 153 . . . Effects 1 | . . . 1 . . . Energy Bleed 1 | . . . 1 . . . Siege Activations . | . . . . . . . Martial Activations . | . . . . . . . Shielding Activations . | . . . . . . . Robots Disrupted . | . . . . . . . Combat Hostiles . | . . . . . . . Robots Corrupted . | . . . . . . . Combat Hostiles . | . . . . . . . Parts Fried . | . . . . . . . Impact Corruptions . | . . . . . . . Robots Melted . | . . . . . . . Combat Hostiles . | . . . . . . . Parts Melted . | . . . . . . . Heat Transferred . | . . . . . . . Parts Sabotaged . | . . . . . . . Parts Stolen . | . . . . . . . Parts Stripped . | . . . . . . . Power Chain Reactions . | . . . . . . . Alert | -11 -10 -10 -9 -9 -9 -8 ------- Run | Yrd Mat Min Mat Min Exi Min Maximum Alert Level . | . . . . . . . Low Security (%) 100 | 100 100 100 100 100 . 100 Level 1 . | . . . . . . . Level 2 . | . . . . . . . Level 3 . | . . . . . . . Level 4 . | . . . . . . . Level 5 . | . . . . . . . High Security . | . . . . . . . Max Security . | . . . . . . . Peak Influence 120 | . 8 . 75 120 . . Initial 15 | . . . . 15 . . Average 33 | . . . 51 62 . . Influence Increases 243 | . 8 . 100 135 . . Destroy 0b10 Robot/C 60 | . . . 60 . . . Destroy Leader 10 | . . . 10 . . . Successful Hack 8 | . 8 . . . . . Lose Combat Pursuer 165 | . . . 30 135 . . Influence Decreases 243 | . 8 . 60 65 110 . Entered New Map 135 | . . . . 25 110 . Time Decay 108 | . 8 . 60 40 . . Squads Dispatched 2 | . . . 2 . . . Investigation 1 | . . . 1 . . . Extermination . | . . . . . . . Reinforcement 1 | . . . 1 . . . Assault . | . . . . . . . Garrison . | . . . . . . . Intercept . | . . . . . . . Searches Triggered . | . . . . . . . Construction Impeded . | . . . . . . . Haulers Reinforced . | . . . . . . . Active Scanning Responses . | . . . . . . . Cargo Convoy Interrupts . | . . . . . . . Stealth | -11 -10 -10 -9 -9 -9 -8 --------- Run | Yrd Mat Min Mat Min Exi Min Distress Signals . | . . . . . . . Communications Jammed . | . . . . . . . Distress Signals . | . . . . . . . Times Spotted 51 | . . 17 23 11 . . Peak Tracking Total 20 | . . 20 15 4 9 . Tactical Retreats 8 | . . 2 2 4 . . Traps | -11 -10 -10 -9 -9 -9 -8 ------- Run | Yrd Mat Min Mat Min Exi Min Traps Triggered . | . . . . . . . Indirectly . | . . . . . . . Trap Hack Attempts . | . . . . . . . Triggered . | . . . . . . . Disarmed . | . . . . . . . Reprogrammed . | . . . . . . . Reused . | . . . . . . . Traps Extracted . | . . . . . . . Installed . | . . . . . . . Triggered . | . . . . . . . Machines | -11 -10 -10 -9 -9 -9 -8 ---------- Run | Yrd Mat Min Mat Min Exi Min Machines Disabled 1 | . . . . . 1 . Max in Single Turn 1 | . . . . . 1 . Machines Repaired . | . . . . . . . Machines Dismantled . | . . . . . . . Machines Sabotaged . | . . . . . . . Overloaded Fab Kills . | . . . . . . . Hacking | -11 -10 -10 -9 -9 -9 -8 --------- Run | Yrd Mat Min Mat Min Exi Min Machines Accessed 4 | . 1 . 2 1 . . Terminals 3 | . 1 . 2 . . . Fabricators . | . . . . . . . Repair Stations . | . . . . . . . Recycling Units . | . . . . . . . Scanalyzers . | . . . . . . . Garrison Access . | . . . . . . . Total Hacks 7 | . 2 . 4 1 . . Successful 3 | . 1 . 1 1 . . Failed 4 | . 1 . 3 . . . Catastrophic 2 | . 1 . 1 . . . Database Lockouts . | . . . . . . . Manual 7 | . 2 . 4 . 1 . Terminals 6 | . 2 . 4 . . . Fabricators . | . . . . . . . Repair Stations . | . . . . . . . Recycling Units . | . . . . . . . Scanalyzers . | . . . . . . . Garrison Access . | . . . . . . . Terminal Hacks 3 | . 1 . 1 1 . . Open Door 1 | . . . . 1 . . Branch Access Points 2 | . 1 . 1 . . . Fabricator Hacks . | . . . . . . . Repair Station Hacks . | . . . . . . . Recycling Unit Hacks . | . . . . . . . Scanalyzer . | . . . . . . . Garrison Access Hacks . | . . . . . . . Unauthorized Hacks . | . . . . . . . Terminals . | . . . . . . . Fabricators . | . . . . . . . Repair Stations . | . . . . . . . Recycling Units . | . . . . . . . Scanalyzers . | . . . . . . . Garrison Access . | . . . . . . . Data Cores Recovered . | . . . . . . . Used . | . . . . . . . Hacking Detections 3 | . 1 . 2 . . . Full Trace Events 2 | . 1 . 1 . . . Feedback Events . | . . . . . . . Feedback Blocked . | . . . . . . . Robot Schematics Acquired . | . . . . . . . Robots Built . | . . . . . . . Authchips . | . . . . . . . Time . | . . . . . . . Total Robot Build Rating . | . . . . . . . Part Schematics Acquired . | . . . . . . . Parts Built . | . . . . . . . Authchips . | . . . . . . . Time . | . . . . . . . Total Part Build Rating . | . . . . . . . Part Studies Acquired . | . . . . . . . Parts Repaired . | . . . . . . . Time . | . . . . . . . Parts Recycled . | . . . . . . . Recycled Matter . | . . . . . . . Retrieved Matter . | . . . . . . . Retrieved Components . | . . . . . . . Parts Scanalyzed . | . . . . . . . Part Schematics Acquired . | . . . . . . . Parts Damaged . | . . . . . . . Bothacking | -11 -10 -10 -9 -9 -9 -8 ------------ Run | Yrd Mat Min Mat Min Exi Min Used RIF Installer . | . . . . . . . Robots Hacked . | . . . . . . . Non-combat . | . . . . . . . Combat . | . . . . . . . Robot Hacks Applied . | . . . . . . . Relay Couplers Released . | . . . . . . . Fabnet Peak Effective % . | . . . . . . . Robots Rewired . | . . . . . . . Allies Hacked . | . . . . . . . Hacks Repelled . | . . . . . . . Allies | -11 -10 -10 -9 -9 -9 -8 -------- Run | Yrd Mat Min Mat Min Exi Min Total Allies . | . . . . . . . Largest Group . | . . . . . . . Highest-Rated Group . | . . . . . . . Highest-Rated Ally . | . . . . . . . Total Orders . | . . . . . . . Ally Attacks . | . . . . . . . Total Damage . | . . . . . . . Kills . | . . . . . . . Allies Corrupted . | . . . . . . . Allies Melted . | . . . . . . . Intel | -11 -10 -10 -9 -9 -9 -8 ------- Run | Yrd Mat Min Mat Min Exi Min Active Infowar (turns) . | . . . . . . . Robot Analysis Total . | . . . . . . . Derelict Logs Recovered 3 | . . 1 . 2 . . Drone Launches . | . . . . . . . Drone Recoveries . | . . . . . . . Exploration | -11 -10 -10 -9 -9 -9 -8 ------------- Run | Yrd Mat Min Mat Min Exi Min Turns Passed 419 | 12 49 81 120 88 67 2 Spaces Moved 1021 | 20 95 120 278 299 204 5 Core 258 | 20 95 120 23 . . . Treads . | . . . . . . . Legs . | . . . . . . . Wheels . | . . . . . . . Hover . | . . . . . . . Flight 763 | . . . 255 299 204 5 Fastest Speed 20 | 50 50 50 20 29 29 29 Average Speed 34 | 50 50 50 31 29 29 29 Slowest Speed 50 | 50 50 50 50 29 29 29 Overloaded Moves 49 | . . . 49 . . . Propulsion Burnouts . | . . . . . . . Robots Hopped 24 | . . . 20 4 . . Potential Cave-ins . | . . . . . . . Cave-ins Triggered . | . . . . . . . Exploration Rate (%) 31 | 3 24 27 32 70 61 4 Regions Visited 6 Branch Regions 4 Pre-discovered Areas 1 | . . . . 1 . . Known Exits Taken 2 | . 1 . 1 . . . Unknown Exits Taken 4 | 1 . 1 . 1 1 . Scrap Searched . | . . . . . . . Spaces Dug . | . . . . . . . Terrain Destroyed . | . . . . . . . Melee . | . . . . . . . Projectile . | . . . . . . . AOE . | . . . . . . . Terrain Rammed 1 | . . . . . 1 . Walls Destroyed . | . . . . . . . Machines Disabled 1 | . . . . . 1 . Actions | -11 -10 -10 -9 -9 -9 -8 --------- Run | Yrd Mat Min Mat Min Exi Min Total 1045 | 20 95 140 279 295 211 5 Wait 23 | . . 21 2 . . . Move 973 | 19 94 119 243 290 203 5 Hop 18 | . . . 14 4 . . Pick Up 2 | . . . 1 1 . . Fast Attach 4 | 1 . . 3 . . . Attach . | . . . . . . . Detach . | . . . . . . . Swap 3 | . . . 3 . . . Drop 4 | . . . 3 . 1 . Fire 10 | . . . 10 . . . Melee . | . . . . . . . Ram 2 | . 1 . . . 1 . Kick . | . . . . . . . Crush . | . . . . . . . Escape Stasis . | . . . . . . . Rewire . | . . . . . . . Trap . | . . . . . . . Miscellaneous 6 | . . . . . 6 . Route ------- -11/Scrapyard -10/Materials (discovered 2 exits: *Mat / *Min) -10/Mines -9/Materials (discovered 2 exits: *Min x2) -9/Mines (discovered 2 exits: [*Mat] / *Exi) -9/Exiles -8/Mines History --------- Turn | Location | Event 6 | -11/Scrapyard | Discovered new exit (range 14) 13 | -11/Scrapyard | Entered Materials 42 | -10/Materials | Discovered new exit (range 10) 48 | -10/Materials | Identified exit to Mines 62 | -10/Materials | Entered Mines 70 | -10/Mines | Assembled infested the area 72 | -10/Mines | Learned Materials garrison access intel 130 | -10/Mines | Discovered new exit (range 15) 143 | -10/Mines | Entered Materials 145 | -9/Materials | Reached level 2 180 | -9/Materials | Upgraded with Propulsion slot (x2) 195 | -9/Materials | Discovered new exit (range 11) 214 | -9/Materials | Core integrity fell below 50% 239 | -9/Materials | Core integrity fell below 20% 250 | -9/Materials | Identified exit to Mines 263 | -9/Materials | Entered Mines 286 | -9/Mines | Learned location of Zion (-6) 295 | -9/Mines | Learned location of 1 exit from Materials 298 | -9/Mines | Found a hidden stash of uninstalled traps 312 | -9/Mines | Met a Derelict who couldn't figure out how to use a Trap Extractor 316 | -9/Mines | Discovered new exit (range 5) 343 | -9/Mines | Found a Scrap Suit stashed away for nefarious purposes 349 | -9/Mines | Deemed a non-threat by the Exiles lab entrance 350 | -9/Mines | Discovered new exit (range 5) 351 | -9/Mines | Entered Exiles 353 | -9/Exiles | Reached level 3 366 | -9/Exiles | Met 8R-AWN 370 | -9/Exiles | Met EX-HEX 379 | -9/Exiles | Met EX-BIN 384 | -9/Exiles | Aligned with FarCom system 384 | -9/Exiles | Given EX-Vault access code 390 | -9/Exiles | Opened EX-Vault 395 | -9/Exiles | Warned to stay clear of 0b10 Research branches 404 | -9/Exiles | Met EX-DEC 408 | -9/Exiles | Attacked by the Exiles 415 | -9/Exiles | Discovered new exit (range 10) 418 | -9/Exiles | Entered Mines 420 | -8/Mines | Self-destructed Last Messages --------------- 00390_ Current location identified: Exiles EX-BIN: Oh yeah, I'd suggest you stay away from the 0b10 Research branches, since the FarCom signals could be picked up there, but you're welcome to try if you really want to. And if we have to leave here due to unforeseen circumstances, don't worry the FarCom system will continue to maintain contact via our distributed network. EX-DEC: Ah I see we have a visitor. One wrong move in here and I'll invert your atomic chain! 00406_ EX-DEC: "Oops, I hope HEX didn't hear that..." 00407_ Slammed into Machine. 00407_ Machine disabled. 00407_ Destabilizing: System corrupted (+1). 00407_ Destabilizing: System corrupted (+2). 00408_ EXILES: Hostile robot within lab perimeter. Defensive protocols time, folks! 00415_ EXIT=FOUND LOCATION=UNKNOWN GOAL=ESCAPE 00419_ K-01 Serf collects debris. Map ----- +----------------------------------------------------+ | | | | | | | | | | | | | | | | | | | | | ?????????????????????????????????? | | ?????????????????????????????????? | | ?????????????????????????????????? | | ?????????????????????????????????? | | ?????????????????????????????????? | | ?????????????????????????????????? | | ?????????????????????????????????? | | ?????????????????????????????????? | | ?????????????????????????????????? | | ?????????????????????????????????? | | ????????????????????????###??????? | | ???????????????????????? #??????? | | ???????????????????????? #??????? | | ????????????????????????# #??????? | | ????????????????????????# #??????? | | ????????????????????????#@#??????? | | ????????????????????????# #??????? | | ????????????????????????# #??????? | | ???????????????????###### ###????? | | ???????????????????# #????? | | ???????????????????# """ #????? | | ???????????????????# """ #????? | | ???????????????????# """ #????? | | ???????????????????# #????? | | ???????????????????# #????? | | ???????????????????###T######????? | | ?????????????????????##??????????? | | ?????????????????????????????????? | | ?????????????????????????????????? | | ?????????????????????????????????? | | ?????????????????????????????????? | | ?????????????????????????????????? | | ?????????????????????????????????? | | ?????????????????????????????????? | | ?????????????????????????????????? | | ?????????????????????????????????? | | ?????????????????????????????????? | | ?????????????????????????????????? | | ?????????????????????????????????? | | ?????????????????????????????????? | +----------------------------------------------------+ Best States ------------- Heat Dissipation 25 Energy Generation 10 Energy Capacity 100 Matter Stores 121 Matter Capacity 300 Sight Range 16 Terrain Scan Density 10 Evasion (%) 64 Item Schematics ----------------- None Robot Schematics ------------------ None Fabricated ------------ Nothing Repaired ---------- Nothing Studied --------- None Alien Tech Used ----------------- None Achievements -------------- None Challenges ------------ None RPGLIKE | -11 -10 -10 -9 -9 -9 -8 --------- Run | Yrd Mat Min Mat Min Exi Min Levels Raised 2 | . . . 1 . 1 . XP Earned 6840 | 3000 40 600 1850 500 350 500 XP Spent 2575 | . . . 2075 500 . . Upgrades 10 | . . . 9 1 . . Propulsion Slot 2 | . . . 2 . . . Core Integrity 5 | . . . 5 . . . Energy Generation 1 | . . . 1 . . . Inventory Capacity 2 | . . . 1 1 . . Protomatter Created . | . . . . . . . Integrity Restored 144 | . . . . . 144 . Core 144 | . . . . . 144 . Protomatter Decayed . | . . . . . . . Game ------ Seed PiercingShockboltClaymores Manual? 0 Play Time 00:04:31 Cumulative 661.4 hours Start 2026.07.14 @ 14:12:23 End 2026.07.14 @ 14:16:51 Sessions 1 Manual Loads 0 Difficulty Rogue Special Mode Winter2019/RPGLIKE Game No. 277 Rogue 123 Adventurer 154 Explorer 0 Win Type - Total 22 Types 4/5/4/3/2/1/0/1/1/1 Lore% 95 Gallery% 88 Achievement% 68 Wizard Run 0 Options --------- Layout 0 ASCII 0 Keyboard 0 Movement Numpad Keybinds 0 Fullscreen 2 Font 18/SmallcapsGlow Map View 76x50 Zoom Use 0% Tactical HUD 1 Map Filters NONE Filters NONE Steam 1 RUN: 395a5ece-5bee-430e-829f-a80ea3008d64